[Event "Early-Titled-Tuesday-Blitz-April-02-2024"]
[Site "Chess.com"]
[Date "2024.04.02"]
[Round "3"]
[White "Gabrielian_Artur"]
[Black "ExchangeAB"]
[Result "1-0"]
[WhiteElo "2800"]
[BlackElo "2471"]
[TimeControl "180+1"]
[EndTime "8:27:40 PDT"]
[Termination "Gabrielian_Artur won by resignation"]

1. Nf3 {[%clk 0:03:00.9]} 1... Nf6 {[%clk 0:02:58.8]} 2. g3 {[%clk 0:03:01]}
2... Nc6 {[%clk 0:02:55.3]} 3. d4 {[%clk 0:03:00]} 3... d5 {[%clk 0:02:55.5]} 4.
Nc3 {[%clk 0:02:57.2]} 4... Bf5 {[%clk 0:02:46.6]} 5. a3 {[%clk 0:02:46.5]} 5...
h6 {[%clk 0:02:42.3]} 6. Bg2 {[%clk 0:02:44.3]} 6... e6 {[%clk 0:02:42]} 7. O-O
{[%clk 0:02:42.3]} 7... Be7 {[%clk 0:02:40.4]} 8. Bf4 {[%clk 0:02:41.6]} 8...
O-O {[%clk 0:02:37.7]} 9. h3 {[%clk 0:02:39.3]} 9... Ne4 {[%clk 0:02:36.8]} 10.
Nb5 {[%clk 0:02:25.3]} 10... Rc8 {[%clk 0:02:34.7]} 11. a4 {[%clk 0:02:21.2]}
11... a6 {[%clk 0:02:34.2]} 12. Na3 {[%clk 0:02:21]} 12... Na5 {[%clk
0:02:28.7]} 13. c3 {[%clk 0:02:14.2]} 13... c5 {[%clk 0:02:02.4]} 14. dxc5
{[%clk 0:01:58.5]} 14... Bxc5 {[%clk 0:02:03.3]} 15. Nd4 {[%clk 0:01:58.7]}
15... Bg6 {[%clk 0:01:48.8]} 16. Be3 {[%clk 0:01:43.6]} 16... Qb6 {[%clk
0:01:31.1]} 17. b4 {[%clk 0:01:35.5]} 17... Nxc3 {[%clk 0:01:27]} 18. bxc5
{[%clk 0:01:33.3]} 18... Nxd1 {[%clk 0:01:27.1]} 19. cxb6 {[%clk 0:01:32.8]}
19... Nxe3 {[%clk 0:01:26.6]} 20. fxe3 {[%clk 0:01:32.7]} 20... Rc3 {[%clk
0:01:21.9]} 21. Rfc1 {[%clk 0:01:21.3]} 21... Rxe3 {[%clk 0:00:55.1]} 22. Kf2
{[%clk 0:01:18]} 22... Re5 {[%clk 0:00:52.6]} 23. Rc7 {[%clk 0:01:16.9]} 23...
Be4 {[%clk 0:00:41.6]} 24. Bf3 {[%clk 0:01:12.5]} 24... Rg5 {[%clk 0:00:34.8]}
25. h4 {[%clk 0:01:10.4]} 25... Rg6 {[%clk 0:00:33.4]} 26. Bxe4 {[%clk
0:01:08.4]} 26... dxe4 {[%clk 0:00:34.3]} 27. Rac1 {[%clk 0:01:06.7]} 27... e5
{[%clk 0:00:34]} 28. Nf5 {[%clk 0:01:02.4]} 28... Rxb6 {[%clk 0:00:32.9]} 29.
Rc8 {[%clk 0:00:54.1]} 29... Rxc8 {[%clk 0:00:28.4]} 30. Rxc8+ {[%clk
0:00:53.3]} 30... Kh7 {[%clk 0:00:29.3]} 31. Ne3 {[%clk 0:00:47]} 31... Rb4
{[%clk 0:00:27.5]} 32. Nac4 {[%clk 0:00:40.3]} 32... Rxa4 {[%clk 0:00:25.6]} 33.
Nxe5 {[%clk 0:00:37.6]} 33... f6 {[%clk 0:00:23.4]} 34. Nd7 {[%clk 0:00:36.1]}
34... Nc6 {[%clk 0:00:21.5]} 35. h5 {[%clk 0:00:33.2]} 35... b5 {[%clk
0:00:16.1]} 36. Nf5 {[%clk 0:00:32]} 36... Ne5 {[%clk 0:00:14.6]} 37. Nxe5
{[%clk 0:00:28.7]} 37... fxe5 {[%clk 0:00:14.6]} 38. Ne7 {[%clk 0:00:28.8]}
38... b4 {[%clk 0:00:13.4]} 39. Ng6 {[%clk 0:00:28.7]} 1-0

[Event "Early-Titled-Tuesday-Blitz-April-02-2024"]
[Site "Chess.com"]
[Date "2024.04.02"]
[Round "3"]
[White "MatthewG-p4p"]
[Black "Ralf61"]
[Result "1-0"]
[WhiteElo "2885"]
[BlackElo "2538"]
[TimeControl "180+1"]
[EndTime "8:27:42 PDT"]
[Termination "MatthewG-p4p won by checkmate"]

1. f4 {[%clk 0:03:00.9]} 1... d5 {[%clk 0:02:57.3]} 2. Nf3 {[%clk 0:03:00.1]}
2... Nf6 {[%clk 0:02:56.3]} 3. g3 {[%clk 0:02:59.5]} 3... g6 {[%clk 0:02:55.5]}
4. Bg2 {[%clk 0:02:58]} 4... Bg7 {[%clk 0:02:55.6]} 5. O-O {[%clk 0:02:58.2]}
5... O-O {[%clk 0:02:55.5]} 6. d3 {[%clk 0:02:56.9]} 6... c5 {[%clk 0:02:54.7]}
7. Ne5 {[%clk 0:02:57.1]} 7... Nfd7 {[%clk 0:02:44.4]} 8. Ng4 {[%clk 0:02:56.5]}
8... e6 {[%clk 0:02:41.7]} 9. e4 {[%clk 0:02:55.6]} 9... f5 {[%clk 0:02:29.7]}
10. Nf2 {[%clk 0:02:52.3]} 10... Nb6 {[%clk 0:02:16.7]} 11. c3 {[%clk
0:02:47.9]} 11... Nc6 {[%clk 0:02:13.1]} 12. Qe2 {[%clk 0:02:41.6]} 12... fxe4
{[%clk 0:01:48.9]} 13. dxe4 {[%clk 0:02:41.4]} 13... d4 {[%clk 0:01:48.9]} 14.
e5 {[%clk 0:02:39.9]} 14... Nd5 {[%clk 0:01:41.7]} 15. Rd1 {[%clk 0:02:34.4]}
15... b6 {[%clk 0:01:30.3]} 16. c4 {[%clk 0:02:23.3]} 16... Nde7 {[%clk
0:01:28.3]} 17. Nd2 {[%clk 0:02:23.6]} 17... Bb7 {[%clk 0:01:21.2]} 18. Nde4
{[%clk 0:02:23.4]} 18... Nf5 {[%clk 0:01:17.7]} 19. Nd3 {[%clk 0:02:16.4]} 19...
Qe7 {[%clk 0:01:12.1]} 20. Bd2 {[%clk 0:02:10.8]} 20... a5 {[%clk 0:01:06.9]}
21. b3 {[%clk 0:02:00.6]} 21... Nb4 {[%clk 0:01:02.7]} 22. Ne1 {[%clk
0:01:30.9]} 22... h5 {[%clk 0:00:49.7]} 23. a3 {[%clk 0:01:29.8]} 23... Nc6
{[%clk 0:00:48.8]} 24. Nd3 {[%clk 0:01:28.1]} 24... Kh8 {[%clk 0:00:41.2]} 25.
Ndf2 {[%clk 0:01:21.1]} 25... a4 {[%clk 0:00:32.6]} 26. bxa4 {[%clk 0:00:58.3]}
26... Rxa4 {[%clk 0:00:31.5]} 27. Rab1 {[%clk 0:00:58.4]} 27... Ba6 {[%clk
0:00:21.9]} 28. Rdc1 {[%clk 0:00:49.5]} 28... Qc7 {[%clk 0:00:20.4]} 29. Ng5
{[%clk 0:00:47.7]} 29... Re8 {[%clk 0:00:16]} 30. g4 {[%clk 0:00:42.7]} 30...
Nh4 {[%clk 0:00:12]} 31. Be4 {[%clk 0:00:38.8]} 31... d3 {[%clk 0:00:06.3]} 32.
Qxd3 {[%clk 0:00:35.1]} 32... Nd4 {[%clk 0:00:04.8]} 33. gxh5 {[%clk 0:00:24.9]}
33... gxh5 {[%clk 0:00:02.6]} 34. Bc6 {[%clk 0:00:22.5]} 34... Qxc6 {[%clk
0:00:01.2]} 35. Qh7# {[%clk 0:00:22.4]} 1-0

[Event "Early-Titled-Tuesday-Blitz-April-02-2024"]
[Site "Chess.com"]
[Date "2024.04.02"]
[Round "3"]
[White "DarZay"]
[Black "ChessSwole"]
[Result "0-1"]
[WhiteElo "2337"]
[BlackElo "2707"]
[TimeControl "180+1"]
[EndTime "8:27:45 PDT"]
[Termination "ChessSwole won on time"]

1. e4 {[%clk 0:02:55.8]} 1... e5 {[%clk 0:02:59.3]} 2. Nf3 {[%clk 0:02:54.7]}
2... Nc6 {[%clk 0:02:59.4]} 3. Bc4 {[%clk 0:02:53.9]} 3... Nf6 {[%clk
0:02:55.6]} 4. d3 {[%clk 0:02:53.1]} 4... h6 {[%clk 0:02:54.2]} 5. c3 {[%clk
0:02:52.4]} 5... d6 {[%clk 0:02:53.4]} 6. Bb3 {[%clk 0:02:47.8]} 6... g6 {[%clk
0:02:52.7]} 7. Nbd2 {[%clk 0:02:45.1]} 7... Bg7 {[%clk 0:02:51.1]} 8. O-O {[%clk
0:02:43.3]} 8... O-O {[%clk 0:02:50.8]} 9. h3 {[%clk 0:02:41.8]} 9... Re8 {[%clk
0:02:48.1]} 10. Re1 {[%clk 0:02:40.7]} 10... Be6 {[%clk 0:02:47.4]} 11. Bc2
{[%clk 0:02:39.7]} 11... d5 {[%clk 0:02:44.5]} 12. Qe2 {[%clk 0:02:39.1]} 12...
Qd7 {[%clk 0:02:30.1]} 13. Nf1 {[%clk 0:02:37.5]} 13... a5 {[%clk 0:02:26.4]}
14. Ng3 {[%clk 0:02:37.2]} 14... Rad8 {[%clk 0:02:25.4]} 15. b3 {[%clk
0:02:20.6]} 15... b5 {[%clk 0:02:21.9]} 16. Bb2 {[%clk 0:02:19.9]} 16... b4
{[%clk 0:02:20.9]} 17. d4 {[%clk 0:01:34.2]} 17... bxc3 {[%clk 0:01:55.6]} 18.
Bxc3 {[%clk 0:01:31.4]} 18... exd4 {[%clk 0:01:55.6]} 19. Nxd4 {[%clk
0:01:16.6]} 19... Nxe4 {[%clk 0:01:04.3]} 20. Nxe4 {[%clk 0:01:06.1]} 20... Nxd4
{[%clk 0:01:04.3]} 21. Bxd4 {[%clk 0:00:54.7]} 21... Bxd4 {[%clk 0:01:05.2]} 22.
Ng3 {[%clk 0:00:37.5]} 22... Bxa1 {[%clk 0:00:58.6]} 23. Rxa1 {[%clk 0:00:37.1]}
23... Bxh3 {[%clk 0:00:37.2]} 24. Qd2 {[%clk 0:00:34.8]} 24... Bg4 {[%clk
0:00:26.4]} 25. Qxh6 {[%clk 0:00:32.7]} 25... Qe7 {[%clk 0:00:25.3]} 26. Kh2
{[%clk 0:00:14.8]} 26... Qe5 {[%clk 0:00:24.6]} 27. Rh1 {[%clk 0:00:12.2]} 27...
Qh8 {[%clk 0:00:24.3]} 28. Qxh8+ {[%clk 0:00:09.1]} 28... Kxh8 {[%clk
0:00:25.2]} 29. f3 {[%clk 0:00:08.9]} 29... Be6 {[%clk 0:00:24.3]} 30. Kg1+
{[%clk 0:00:07.9]} 30... Kg7 {[%clk 0:00:25]} 31. Kf2 {[%clk 0:00:08]} 31... c5
{[%clk 0:00:25.4]} 32. Ne2 {[%clk 0:00:06.9]} 32... Bf5 {[%clk 0:00:23]} 33.
Bxf5 {[%clk 0:00:05.7]} 33... gxf5 {[%clk 0:00:23.9]} 34. Ng3 {[%clk 0:00:06]}
34... Kg6 {[%clk 0:00:21.5]} 35. Rh5 {[%clk 0:00:04.9]} 35... f4 {[%clk
0:00:20.4]} 0-1

[Event "Early-Titled-Tuesday-Blitz-April-02-2024"]
[Site "Chess.com"]
[Date "2024.04.02"]
[Round "3"]
[White "ural58"]
[Black "Byniolus"]
[Result "0-1"]
[WhiteElo "2474"]
[BlackElo "2756"]
[TimeControl "180+1"]
[EndTime "8:27:46 PDT"]
[Termination "Byniolus won by resignation"]

1. e4 {[%clk 0:03:00.9]} 1... d6 {[%clk 0:03:00.2]} 2. d4 {[%clk 0:03:00.3]}
2... Nf6 {[%clk 0:03:01.1]} 3. Nc3 {[%clk 0:03:00.3]} 3... c6 {[%clk 0:03:01.8]}
4. Be3 {[%clk 0:02:32.9]} 4... Qb6 {[%clk 0:03:01.7]} 5. a3 {[%clk 0:02:26.7]}
5... Ng4 {[%clk 0:03:01.3]} 6. Nf3 {[%clk 0:02:23]} 6... Nxe3 {[%clk 0:03:00.2]}
7. fxe3 {[%clk 0:02:23.2]} 7... e6 {[%clk 0:02:59.7]} 8. Bd3 {[%clk 0:02:18.9]}
8... Be7 {[%clk 0:02:58.2]} 9. O-O {[%clk 0:02:18.6]} 9... Nd7 {[%clk
0:02:58.8]} 10. Kh1 {[%clk 0:02:17.7]} 10... O-O {[%clk 0:02:58.2]} 11. b4
{[%clk 0:02:17.4]} 11... a5 {[%clk 0:02:56.8]} 12. b5 {[%clk 0:02:13.6]} 12...
c5 {[%clk 0:02:39.9]} 13. Rb1 {[%clk 0:02:08.1]} 13... Bf6 {[%clk 0:02:31.3]}
14. Na4 {[%clk 0:02:07.3]} 14... Qd8 {[%clk 0:02:24.2]} 15. b6 {[%clk
0:02:07.3]} 15... Be7 {[%clk 0:02:01.1]} 16. c3 {[%clk 0:02:06.1]} 16... Nb8
{[%clk 0:01:55.2]} 17. e5 {[%clk 0:02:04.3]} 17... cxd4 {[%clk 0:01:51]} 18.
cxd4 {[%clk 0:01:53]} 18... Nc6 {[%clk 0:01:44]} 19. exd6 {[%clk 0:01:48.2]}
19... Bxd6 {[%clk 0:01:44.9]} 20. Be4 {[%clk 0:01:47.5]} 20... Ne7 {[%clk
0:01:23.4]} 21. Ne5 {[%clk 0:01:47.3]} 21... Nd5 {[%clk 0:01:13.5]} 22. Qd3
{[%clk 0:01:43.8]} 22... Nf6 {[%clk 0:01:04.1]} 23. Nc5 {[%clk 0:01:19.7]} 23...
Qe7 {[%clk 0:01:00.2]} 24. Rxf6 {[%clk 0:01:12.2]} 24... Qxf6 {[%clk 0:00:54.3]}
25. Bxh7+ {[%clk 0:00:46.8]} 25... Kh8 {[%clk 0:00:54.4]} 26. Qe4 {[%clk
0:00:36.5]} 26... Qh6 {[%clk 0:00:44.4]} 27. Rf1 {[%clk 0:00:28.5]} 27... Bxe5
{[%clk 0:00:29.7]} 28. dxe5 {[%clk 0:00:23.6]} 28... Qxh7 {[%clk 0:00:28.8]} 29.
Qd4 {[%clk 0:00:22.1]} 29... a4 {[%clk 0:00:19.4]} 30. h3 {[%clk 0:00:20.9]}
30... Ra5 {[%clk 0:00:17.5]} 31. Rf4 {[%clk 0:00:20.5]} 31... Kg8 {[%clk
0:00:16]} 32. Qd6 {[%clk 0:00:16.5]} 32... Rxc5 {[%clk 0:00:12.5]} 33. Qxc5
{[%clk 0:00:16]} 33... Bd7 {[%clk 0:00:13.2]} 34. Rg4 {[%clk 0:00:12.2]} 34...
Bc6 {[%clk 0:00:12.8]} 35. Qe7 {[%clk 0:00:11.9]} 35... Qxh3+ {[%clk 0:00:12.6]}
0-1

[Event "Early-Titled-Tuesday-Blitz-April-02-2024"]
[Site "Chess.com"]
[Date "2024.04.02"]
[Round "3"]
[White "Predo63"]
[Black "ChempionBg"]
[Result "1-0"]
[WhiteElo "2516"]
[BlackElo "2286"]
[TimeControl "180+1"]
[EndTime "8:27:46 PDT"]
[Termination "Predo63 won on time"]

1. d4 {[%clk 0:02:58.6]} 1... Nf6 {[%clk 0:02:36.8]} 2. Bg5 {[%clk 0:02:57.4]}
2... d5 {[%clk 0:02:35.9]} 3. Bxf6 {[%clk 0:02:57.1]} 3... exf6 {[%clk
0:02:27.1]} 4. e3 {[%clk 0:02:57.4]} 4... Bf5 {[%clk 0:02:21.8]} 5. Nd2 {[%clk
0:02:56.4]} 5... c6 {[%clk 0:02:21.5]} 6. Ne2 {[%clk 0:02:50.8]} 6... Be7 {[%clk
0:02:20.9]} 7. g3 {[%clk 0:02:50.4]} 7... O-O {[%clk 0:02:20.7]} 8. Bg2 {[%clk
0:02:50.8]} 8... Re8 {[%clk 0:02:15.9]} 9. O-O {[%clk 0:02:50.6]} 9... Bf8
{[%clk 0:02:14.7]} 10. a3 {[%clk 0:02:49.7]} 10... h6 {[%clk 0:02:13.8]} 11. Re1
{[%clk 0:02:47.8]} 11... Nd7 {[%clk 0:02:13.2]} 12. Rc1 {[%clk 0:02:46.6]} 12...
Nb6 {[%clk 0:02:11.3]} 13. c4 {[%clk 0:02:44]} 13... dxc4 {[%clk 0:02:10.4]} 14.
Nxc4 {[%clk 0:02:43.9]} 14... Nxc4 {[%clk 0:02:09.6]} 15. Rxc4 {[%clk
0:02:43.5]} 15... Be6 {[%clk 0:02:10]} 16. Rc1 {[%clk 0:02:42.2]} 16... Bd5
{[%clk 0:02:10.5]} 17. Bxd5 {[%clk 0:02:40.5]} 17... Qxd5 {[%clk 0:02:10.4]} 18.
Nf4 {[%clk 0:02:35.5]} 18... Qe4 {[%clk 0:02:08.6]} 19. Qc2 {[%clk 0:02:33.8]}
19... f5 {[%clk 0:02:06.2]} 20. Qxe4 {[%clk 0:02:33.3]} 20... fxe4 {[%clk
0:02:06.1]} 21. Rc2 {[%clk 0:02:33]} 21... a5 {[%clk 0:02:04.1]} 22. a4 {[%clk
0:02:25.3]} 22... Ra6 {[%clk 0:01:58.5]} 23. Ne2 {[%clk 0:02:23.8]} 23... Rb6
{[%clk 0:01:57.4]} 24. Ra1 {[%clk 0:02:23.3]} 24... Rb3 {[%clk 0:01:52.8]} 25.
Nc1 {[%clk 0:02:22.2]} 25... Rb4 {[%clk 0:01:47.8]} 26. h4 {[%clk 0:02:21.5]}
26... f5 {[%clk 0:01:43.9]} 27. Kf1 {[%clk 0:02:21.2]} 27... Kf7 {[%clk
0:01:42.7]} 28. Ke2 {[%clk 0:02:20.9]} 28... Be7 {[%clk 0:01:39.7]} 29. Kd2
{[%clk 0:02:17.5]} 29... Bf6 {[%clk 0:01:38.2]} 30. h5 {[%clk 0:02:15]} 30...
Rd8 {[%clk 0:01:25.9]} 31. Ke1 {[%clk 0:02:12]} 31... Be7 {[%clk 0:01:19.3]} 32.
Ra2 {[%clk 0:02:10.5]} 32... Kf6 {[%clk 0:01:17.4]} 33. Ne2 {[%clk 0:02:08.5]}
33... Bd6 {[%clk 0:01:12.1]} 34. Kd2 {[%clk 0:02:06.5]} 34... Kg5 {[%clk
0:01:09.7]} 35. Ra1 {[%clk 0:02:03.4]} 35... Kxh5 {[%clk 0:01:06.6]} 36. Kc3
{[%clk 0:02:00.4]} 36... Kg4 {[%clk 0:01:01.9]} 37. b3 {[%clk 0:01:59.8]} 37...
Kf3 {[%clk 0:00:44]} 38. Rf1 {[%clk 0:01:48.3]} 38... g5 {[%clk 0:00:35.5]} 39.
Nc1 {[%clk 0:01:36.2]} 39... h5 {[%clk 0:00:27.2]} 40. Rh1 {[%clk 0:01:35.3]}
40... Rh8 {[%clk 0:00:25]} 41. Na2 {[%clk 0:01:33.6]} 41... Rb6 {[%clk 0:00:22]}
42. Kb2 {[%clk 0:01:33.7]} 42... h4 {[%clk 0:00:12]} 43. gxh4 {[%clk 0:01:32.9]}
43... Rxh4 {[%clk 0:00:11.9]} 44. Rg1 {[%clk 0:01:32.8]} 44... g4 {[%clk
0:00:11.6]} 45. Nc3 {[%clk 0:01:29.4]} 45... g3 {[%clk 0:00:07.4]} 46. fxg3
{[%clk 0:01:27.1]} 46... Bxg3 {[%clk 0:00:07.4]} 47. Nd1 {[%clk 0:01:25.2]}
47... Rg4 {[%clk 0:00:06.4]} 48. Rf1+ {[%clk 0:01:24.1]} 48... Bf2 {[%clk
0:00:04.9]} 49. Rfxf2+ {[%clk 0:01:23.3]} 49... Kg3 {[%clk 0:00:05.2]} 50. Rg2+
{[%clk 0:01:23.6]} 50... Kh4 {[%clk 0:00:04.5]} 51. Rh2+ {[%clk 0:01:23.9]}
51... Kg5 {[%clk 0:00:04.6]} 52. Nc3 {[%clk 0:01:21.6]} 52... Rg3 {[%clk
0:00:04.3]} 53. Rcg2 {[%clk 0:01:21.1]} 53... Kg4 {[%clk 0:00:03.7]} 54. Rxg3+
{[%clk 0:01:21.4]} 54... Kxg3 {[%clk 0:00:01.4]} 55. Rh5 {[%clk 0:01:22]} 1-0

[Event "Early-Titled-Tuesday-Blitz-April-02-2024"]
[Site "Chess.com"]
[Date "2024.04.02"]
[Round "3"]
[White "emeli_chess"]
[Black "newauto"]
[Result "1-0"]
[WhiteElo "2409"]
[BlackElo "2205"]
[TimeControl "180+1"]
[EndTime "8:27:46 PDT"]
[Termination "emeli_chess won by resignation"]

1. d4 {[%clk 0:03:00.9]} 1... c6 {[%clk 0:03:00.9]} 2. c4 {[%clk 0:03:00.6]}
2... d5 {[%clk 0:03:01.8]} 3. Nc3 {[%clk 0:03:00.5]} 3... Nf6 {[%clk 0:03:02.1]}
4. e3 {[%clk 0:03:00.7]} 4... Bf5 {[%clk 0:02:58.9]} 5. Nf3 {[%clk 0:03:00.3]}
5... e6 {[%clk 0:02:58.9]} 6. Nh4 {[%clk 0:02:59.9]} 6... Bg4 {[%clk 0:02:58.4]}
7. f3 {[%clk 0:02:42.5]} 7... Bh5 {[%clk 0:02:58]} 8. g3 {[%clk 0:02:40.4]} 8...
Nbd7 {[%clk 0:02:52.7]} 9. Ng2 {[%clk 0:02:35.4]} 9... Bd6 {[%clk 0:02:50.6]}
10. Be2 {[%clk 0:02:27]} 10... Qc7 {[%clk 0:02:48.5]} 11. O-O {[%clk 0:02:18.4]}
11... O-O {[%clk 0:02:45.4]} 12. f4 {[%clk 0:02:11.7]} 12... Bxe2 {[%clk
0:02:44.3]} 13. Qxe2 {[%clk 0:02:11.6]} 13... Ne4 {[%clk 0:02:42.2]} 14. Nxe4
{[%clk 0:02:06.4]} 14... dxe4 {[%clk 0:02:43.1]} 15. b3 {[%clk 0:02:04.1]} 15...
c5 {[%clk 0:02:36.9]} 16. Bb2 {[%clk 0:01:56.1]} 16... f5 {[%clk 0:02:36.8]} 17.
Rfd1 {[%clk 0:01:50.3]} 17... Be7 {[%clk 0:02:34.9]} 18. d5 {[%clk 0:01:47.1]}
18... exd5 {[%clk 0:02:33.2]} 19. Rxd5 {[%clk 0:01:45.6]} 19... g6 {[%clk
0:02:25.5]} 20. Qc2 {[%clk 0:01:30.3]} 20... Nf6 {[%clk 0:02:24.3]} 21. Bxf6
{[%clk 0:01:22.9]} 21... Bxf6 {[%clk 0:02:23.5]} 22. Rad1 {[%clk 0:01:22.5]}
22... Rad8 {[%clk 0:02:22.6]} 23. R1d2 {[%clk 0:01:17.3]} 23... Kf7 {[%clk
0:02:11.7]} 24. Qd1 {[%clk 0:01:16.6]} 24... Ke6 {[%clk 0:02:04.1]} 25. h3
{[%clk 0:01:09.1]} 25... h5 {[%clk 0:01:57.1]} 26. g4 {[%clk 0:01:06.6]} 26...
hxg4 {[%clk 0:01:51.1]} 27. hxg4 {[%clk 0:01:06.8]} 27... Rxd5 {[%clk
0:01:41.5]} 28. Rxd5 {[%clk 0:01:03.5]} 28... Rd8 {[%clk 0:01:40.1]} 29. gxf5+
{[%clk 0:01:03]} 29... gxf5 {[%clk 0:01:39.6]} 30. Qh5 {[%clk 0:00:59.8]} 30...
Rg8 {[%clk 0:01:18]} 31. Qxf5+ {[%clk 0:00:57.6]} 31... Ke7 {[%clk 0:01:15.6]}
32. Qxe4+ {[%clk 0:00:55.6]} 32... Kf7 {[%clk 0:01:15.7]} 33. Qf5 {[%clk
0:00:42.7]} 33... Rd8 {[%clk 0:01:03.1]} 34. Qh7+ {[%clk 0:00:33.9]} 34... Bg7
{[%clk 0:01:01.4]} 35. Nh4 {[%clk 0:00:24.6]} 35... Rxd5 {[%clk 0:00:57.5]} 36.
cxd5 {[%clk 0:00:24.6]} 36... Ke8 {[%clk 0:00:38.1]} 37. Nf5 {[%clk 0:00:22.6]}
37... Be5 {[%clk 0:00:34.7]} 38. Qg8+ {[%clk 0:00:22]} 38... Kd7 {[%clk
0:00:33.5]} 39. Qe6+ {[%clk 0:00:21.8]} 39... Kd8 {[%clk 0:00:32.9]} 40. fxe5
{[%clk 0:00:21.1]} 40... Qh7 {[%clk 0:00:32.4]} 41. Qd6+ {[%clk 0:00:18.7]}
41... Ke8 {[%clk 0:00:30.1]} 42. Qb8+ {[%clk 0:00:18.8]} 42... Kf7 {[%clk
0:00:29]} 43. Qxb7+ {[%clk 0:00:18.9]} 43... Kg6 {[%clk 0:00:29.3]} 44. Qxh7+
{[%clk 0:00:18.9]} 44... Kxh7 {[%clk 0:00:29.8]} 45. d6 {[%clk 0:00:19.1]} 1-0

[Event "Early-Titled-Tuesday-Blitz-April-02-2024"]
[Site "Chess.com"]
[Date "2024.04.02"]
[Round "3"]
[White "vangulio"]
[Black "Tol_Tol"]
[Result "1-0"]
[WhiteElo "2545"]
[BlackElo "2315"]
[TimeControl "180+1"]
[EndTime "8:27:48 PDT"]
[Termination "vangulio won by resignation"]

1. e4 {[%clk 0:02:51.8]} 1... c5 {[%clk 0:02:59.7]} 2. Nf3 {[%clk 0:02:52.1]}
2... Nc6 {[%clk 0:03:00.2]} 3. d4 {[%clk 0:02:52.9]} 3... cxd4 {[%clk
0:03:00.7]} 4. Nxd4 {[%clk 0:02:53.8]} 4... Nf6 {[%clk 0:03:01.3]} 5. Nc3 {[%clk
0:02:54]} 5... e5 {[%clk 0:03:01.9]} 6. Ndb5 {[%clk 0:02:54.4]} 6... d6 {[%clk
0:03:02.2]} 7. Bg5 {[%clk 0:02:54.9]} 7... a6 {[%clk 0:03:02.5]} 8. Na3 {[%clk
0:02:55.6]} 8... b5 {[%clk 0:03:03.4]} 9. Bxf6 {[%clk 0:02:56]} 9... gxf6 {[%clk
0:03:03.4]} 10. Nd5 {[%clk 0:02:56.9]} 10... Bg7 {[%clk 0:03:04.3]} 11. Bd3
{[%clk 0:02:51.4]} 11... Ne7 {[%clk 0:03:03.5]} 12. Nxe7 {[%clk 0:02:47.3]}
12... Qxe7 {[%clk 0:03:04.4]} 13. c4 {[%clk 0:02:47.7]} 13... f5 {[%clk
0:03:04.1]} 14. O-O {[%clk 0:02:45.3]} 14... O-O {[%clk 0:03:03.4]} 15. exf5
{[%clk 0:02:29.3]} 15... e4 {[%clk 0:03:01.6]} 16. Re1 {[%clk 0:02:15.6]} 16...
Bxf5 {[%clk 0:03:01.4]} 17. Rb1 {[%clk 0:01:59.9]} 17... Be5 {[%clk 0:02:28.7]}
18. Bf1 {[%clk 0:01:39.3]} 18... e3 {[%clk 0:02:07.1]} 19. Rxe3 {[%clk 0:01:35]}
19... Bxb1 {[%clk 0:02:06.5]} 20. Qxb1 {[%clk 0:01:34.3]} 20... Kh8 {[%clk
0:01:44.8]} 21. cxb5 {[%clk 0:01:30.7]} 21... axb5 {[%clk 0:01:43.9]} 22. Nxb5
{[%clk 0:01:30.6]} 22... Rg8 {[%clk 0:01:31.4]} 23. g3 {[%clk 0:01:13.2]} 23...
Rac8 {[%clk 0:01:18.2]} 24. Qf5 {[%clk 0:01:00]} 24... Rc1 {[%clk 0:00:46.5]}
25. Nxd6 {[%clk 0:00:38.4]} 25... Qxd6 {[%clk 0:00:36.9]} 26. Qxe5+ {[%clk
0:00:38.7]} 26... Qxe5 {[%clk 0:00:36.1]} 27. Rxe5 {[%clk 0:00:39.6]} 27... Rd8
{[%clk 0:00:32.3]} 28. Kg2 {[%clk 0:00:34.1]} 28... Rd2 {[%clk 0:00:31.7]} 29.
b3 {[%clk 0:00:20.5]} 29... Rcc2 {[%clk 0:00:27.3]} 30. Rf5 {[%clk 0:00:19.7]}
30... Kg7 {[%clk 0:00:27.4]} 31. Bc4 {[%clk 0:00:19.5]} 31... f6 {[%clk
0:00:27]} 32. a4 {[%clk 0:00:19.9]} 32... Kg6 {[%clk 0:00:17.9]} 33. Rf3 {[%clk
0:00:20.2]} 33... h5 {[%clk 0:00:16.2]} 34. Bd3+ {[%clk 0:00:20.1]} 34... Kg5
{[%clk 0:00:11.4]} 35. Bxc2 {[%clk 0:00:19.9]} 35... Rxc2 {[%clk 0:00:11.4]} 36.
h4+ {[%clk 0:00:20.1]} 36... Kg6 {[%clk 0:00:10.9]} 37. b4 {[%clk 0:00:19.2]}
37... Rc4 {[%clk 0:00:10.4]} 38. Rb3 {[%clk 0:00:18.6]} 1-0